[Event "*** MasterClass Titled Tuesday Blitz"]
[Site "Chess.com"]
[Date "2017.11.07"]
[Round "1"]
[White "Robin-Side"]
[Black "lukas_111111"]
[Result "1-0"]
[WhiteElo "2615"]
[BlackElo "2344"]
[TimeControl "180+2"]
[EndTime "14:10:18 PST"]
[Termination "Robin-Side won by resignation"]

1. d4 {[%clk 0:03:01.9]} 1... Nf6 {[%clk 0:02:59]} 2. Nc3 {[%clk 0:03:02.4]}
2... d5 {[%clk 0:02:57.6]} 3. e4 {[%clk 0:03:01.3]} 3... dxe4 {[%clk 0:02:55.9]}
4. f3 {[%clk 0:03:01.9]} 4... exf3 {[%clk 0:02:55.3]} 5. Nxf3 {[%clk 0:03:03.8]}
5... Bf5 {[%clk 0:02:48]} 6. Bc4 {[%clk 0:03:03]} 6... e6 {[%clk 0:02:48.7]} 7.
O-O {[%clk 0:03:02.8]} 7... Nbd7 {[%clk 0:02:49.5]} 8. Ng5 {[%clk 0:02:45.5]}
8... Nb6 {[%clk 0:02:36.2]} 9. Bb3 {[%clk 0:02:35.1]} 9... c5 {[%clk 0:02:31.8]}
10. Rxf5 {[%clk 0:02:15.9]} 10... c4 {[%clk 0:01:44.4]} 11. Rf1 {[%clk
0:01:37.7]} 11... cxb3 {[%clk 0:01:43.9]} 12. axb3 {[%clk 0:01:39.6]} 12... Qd7
{[%clk 0:01:39.7]} 13. Nce4 {[%clk 0:01:32.4]} 13... Be7 {[%clk 0:01:38.3]} 14.
c3 {[%clk 0:01:27.4]} 14... O-O {[%clk 0:01:32.3]} 15. Nxf6+ {[%clk 0:01:16.9]}
15... Bxf6 {[%clk 0:01:31.1]} 16. Rxf6 {[%clk 0:01:11.2]} 16... gxf6 {[%clk
0:01:31.4]} 17. Qh5 {[%clk 0:01:11.8]} 17... Rfc8 {[%clk 0:00:54.8]} 18. Nxh7
{[%clk 0:01:12.6]} 18... Qe7 {[%clk 0:00:37.8]} 19. Bh6 {[%clk 0:01:00.5]} 19...
f5 {[%clk 0:00:11.4]} 20. Bg5 {[%clk 0:00:48.6]} 20... Qd6 {[%clk 0:00:11.5]}
21. Bf6 {[%clk 0:00:34]} 21... Qf4 {[%clk 0:00:07.1]} 22. Ng5 {[%clk 0:00:29.5]}
22... Qe3+ {[%clk 0:00:08.3]} 23. Kh1 {[%clk 0:00:30.1]} 1-0

[Event "*** MasterClass Titled Tuesday Blitz"]
[Site "Chess.com"]
[Date "2017.11.07"]
[Round "1"]
[White "dretch"]
[Black "pandamaster3000"]
[Result "1-0"]
[WhiteElo "2563"]
[BlackElo "2267"]
[TimeControl "180+2"]
[EndTime "14:10:36 PST"]
[Termination "dretch won by resignation"]

1. d4 {[%clk 0:03:01.9]} 1... Nf6 {[%clk 0:03:00.5]} 2. c4 {[%clk 0:02:56.9]}
2... g6 {[%clk 0:02:50.7]} 3. Nc3 {[%clk 0:02:57.8]} 3... Bg7 {[%clk 0:02:51.8]}
4. e4 {[%clk 0:02:57.9]} 4... d6 {[%clk 0:02:53.2]} 5. Nf3 {[%clk 0:02:59.4]}
5... O-O {[%clk 0:02:54]} 6. h3 {[%clk 0:03:00.9]} 6... Na6 {[%clk 0:02:53.6]}
7. Bg5 {[%clk 0:02:59.1]} 7... h6 {[%clk 0:02:47.9]} 8. Be3 {[%clk 0:02:59.1]}
8... e5 {[%clk 0:02:38.3]} 9. Bd3 {[%clk 0:02:57.4]} 9... c6 {[%clk 0:02:37.5]}
10. O-O {[%clk 0:02:56.4]} 10... Qe7 {[%clk 0:02:38]} 11. Re1 {[%clk 0:02:55]}
11... Re8 {[%clk 0:02:36.4]} 12. Qd2 {[%clk 0:02:54.9]} 12... Kh7 {[%clk
0:02:37.8]} 13. Bc2 {[%clk 0:02:43]} 13... Bd7 {[%clk 0:02:33.4]} 14. a3 {[%clk
0:02:39.7]} 14... Rad8 {[%clk 0:02:32.7]} 15. d5 {[%clk 0:02:37.4]} 15... c5
{[%clk 0:02:05.7]} 16. Nb5 {[%clk 0:02:25.5]} 16... Bxb5 {[%clk 0:02:04.2]} 17.
cxb5 {[%clk 0:02:26.9]} 17... Nc7 {[%clk 0:02:05.9]} 18. a4 {[%clk 0:02:24.5]}
18... b6 {[%clk 0:02:06.9]} 19. b4 {[%clk 0:02:23.9]} 19... Nd7 {[%clk
0:02:05.2]} 20. Rec1 {[%clk 0:02:13.5]} 20... Rf8 {[%clk 0:02:05.5]} 21. a5
{[%clk 0:02:00.1]} 21... Ra8 {[%clk 0:02:03.8]} 22. bxc5 {[%clk 0:01:59]} 22...
bxc5 {[%clk 0:01:49.8]} 23. Rcb1 {[%clk 0:01:54.6]} 23... f5 {[%clk 0:01:42.7]}
24. exf5 {[%clk 0:01:55]} 24... gxf5 {[%clk 0:01:44.6]} 25. Ra4 {[%clk
0:01:55.6]} 25... e4 {[%clk 0:01:29.9]} 26. Nh2 {[%clk 0:01:50.2]} 26... Rfb8
{[%clk 0:01:29.2]} 27. g4 {[%clk 0:01:48.1]} 27... Be5 {[%clk 0:01:13.5]} 28.
gxf5 {[%clk 0:01:45.7]} 28... Rg8+ {[%clk 0:01:11.3]} 29. Ng4 {[%clk 0:01:21.2]}
29... h5 {[%clk 0:01:03.3]} 30. Bxe4 {[%clk 0:01:00.4]} 30... Nf6 {[%clk
0:01:04.1]} 31. Bf3 {[%clk 0:00:59.9]} 31... hxg4 {[%clk 0:00:49.8]} 32. hxg4
{[%clk 0:00:59.2]} 32... Nfe8 {[%clk 0:00:32.6]} 33. g5 {[%clk 0:00:58.4]} 33...
Rh8 {[%clk 0:00:30.6]} 34. f6 {[%clk 0:00:55.7]} 34... Nxf6 {[%clk 0:00:24.3]}
35. gxf6 {[%clk 0:00:56.1]} 35... Qxf6 {[%clk 0:00:26.2]} 36. Rg4 {[%clk
0:00:50.4]} 36... Rag8 {[%clk 0:00:25.6]} 37. Be4+ {[%clk 0:00:50.4]} 1-0

[Event "*** MasterClass Titled Tuesday Blitz"]
[Site "Chess.com"]
[Date "2017.11.07"]
[Round "1"]
[White "AttilaTurzo"]
[Black "Jospem"]
[Result "0-1"]
[WhiteElo "2352"]
[BlackElo "2616"]
[TimeControl "180+2"]
[EndTime "14:10:47 PST"]
[Termination "Jospem won by resignation"]

1. d4 {[%clk 0:03:01.9]} 1... Nf6 {[%clk 0:02:59.4]} 2. Bf4 {[%clk 0:03:03.5]}
2... e6 {[%clk 0:03:00.5]} 3. Nc3 {[%clk 0:03:04.9]} 3... c5 {[%clk 0:03:02.1]}
4. d5 {[%clk 0:03:05.7]} 4... d6 {[%clk 0:03:02]} 5. e4 {[%clk 0:03:05.9]} 5...
a6 {[%clk 0:03:02]} 6. a4 {[%clk 0:03:06.5]} 6... e5 {[%clk 0:03:01.3]} 7. Be3
{[%clk 0:03:01.8]} 7... Be7 {[%clk 0:03:02.9]} 8. Be2 {[%clk 0:03:01.3]} 8...
O-O {[%clk 0:03:04]} 9. h3 {[%clk 0:02:58.9]} 9... Ne8 {[%clk 0:03:01.7]} 10.
Nf3 {[%clk 0:02:58.4]} 10... b6 {[%clk 0:03:02.2]} 11. O-O {[%clk 0:02:58.4]}
11... g6 {[%clk 0:03:01.4]} 12. Nd2 {[%clk 0:02:52.8]} 12... Ng7 {[%clk
0:03:02.4]} 13. Nc4 {[%clk 0:02:50.6]} 13... f5 {[%clk 0:02:57.5]} 14. a5 {[%clk
0:02:49.5]} 14... f4 {[%clk 0:02:54.7]} 15. Bc1 {[%clk 0:02:49.9]} 15... b5
{[%clk 0:02:53.9]} 16. Nb6 {[%clk 0:02:50.7]} 16... Ra7 {[%clk 0:02:55.5]} 17.
Nxc8 {[%clk 0:02:51.9]} 17... Qxc8 {[%clk 0:02:57]} 18. b3 {[%clk 0:02:30.2]}
18... Nd7 {[%clk 0:02:58.1]} 19. Nb1 {[%clk 0:02:28.9]} 19... h5 {[%clk
0:02:59.2]} 20. c4 {[%clk 0:02:22.9]} 20... b4 {[%clk 0:02:59.3]} 21. g3 {[%clk
0:02:17.1]} 21... Nf6 {[%clk 0:02:58.8]} 22. gxf4 {[%clk 0:02:13.2]} 22... Qxh3
{[%clk 0:02:54]} 23. Qd3 {[%clk 0:02:13.8]} 23... Qxd3 {[%clk 0:02:46.9]} 24.
Bxd3 {[%clk 0:02:15.7]} 24... exf4 {[%clk 0:02:48.2]} 25. Bxf4 {[%clk
0:02:09.3]} 25... Nxe4 {[%clk 0:02:45.4]} 26. Bh2 {[%clk 0:01:56.7]} 26... Ng5
{[%clk 0:02:08.9]} 27. Bxg6 {[%clk 0:01:57]} 27... Nf3+ {[%clk 0:02:07.7]} 28.
Kg2 {[%clk 0:01:57.5]} 28... Nxh2 {[%clk 0:02:08]} 29. Kxh2 {[%clk 0:01:59.4]}
29... Rf6 {[%clk 0:02:02]} 30. Be4 {[%clk 0:01:57.5]} 30... Rf4 {[%clk
0:02:02.6]} 31. f3 {[%clk 0:01:50.3]} 31... Bf6 {[%clk 0:02:02.1]} 32. Ra2
{[%clk 0:01:50.4]} 32... Rf7 {[%clk 0:02:03.3]} 33. Re2 {[%clk 0:01:39.2]} 33...
Be5 {[%clk 0:02:03.6]} 34. Kg2 {[%clk 0:01:39.7]} 34... Nf5 {[%clk 0:02:02]} 35.
Bxf5 {[%clk 0:01:36.3]} 35... R4xf5 {[%clk 0:02:01.4]} 36. Nd2 {[%clk
0:01:29.8]} 36... Rg7+ {[%clk 0:01:54.8]} 37. Kf2 {[%clk 0:01:30.4]} 37... Bg3+
{[%clk 0:01:53.8]} 38. Ke3 {[%clk 0:01:28.1]} 38... h4 {[%clk 0:01:47.5]} 39.
Ne4 {[%clk 0:01:26.2]} 39... Bf4+ {[%clk 0:01:48.7]} 40. Kd3 {[%clk 0:01:27.1]}
40... h3 {[%clk 0:01:50.1]} 41. Rh1 {[%clk 0:01:24.9]} 41... h2 {[%clk
0:01:51.2]} 42. Rf2 {[%clk 0:01:19.1]} 42... Rg1 {[%clk 0:01:46.2]} 43. Rf1
{[%clk 0:01:16]} 43... Rxf1 {[%clk 0:01:37.3]} 44. Rxf1 {[%clk 0:01:16.3]} 44...
Be5 {[%clk 0:01:39]} 45. Nd2 {[%clk 0:01:08.7]} 45... Rg5 {[%clk 0:01:35.1]} 46.
f4 {[%clk 0:01:08]} 46... Rg1 {[%clk 0:01:35.2]} 47. fxe5 {[%clk 0:01:02.7]}
47... Rxf1 {[%clk 0:01:33.2]} 48. Nxf1 {[%clk 0:01:03.8]} 48... h1=Q {[%clk
0:01:35.1]} 49. exd6 {[%clk 0:00:59.7]} 49... Qxf1+ {[%clk 0:01:35]} 50. Ke4
{[%clk 0:01:01.1]} 50... Qf6 {[%clk 0:01:36.9]} 51. d7 {[%clk 0:01:01.3]} 51...
Qd8 {[%clk 0:01:38.5]} 52. Ke5 {[%clk 0:01:01.8]} 52... Qxd7 {[%clk 0:01:40.4]}
53. d6 {[%clk 0:01:03.3]} 53... Kf7 {[%clk 0:01:39.8]} 54. Kd5 {[%clk
0:01:04.5]} 54... Qc8 {[%clk 0:01:39.7]} 55. Ke5 {[%clk 0:01:03.9]} 55... Qe6+
{[%clk 0:01:40.5]} 0-1

[Event "*** MasterClass Titled Tuesday Blitz"]
[Site "Chess.com"]
[Date "2017.11.07"]
[Round "1"]
[White "bugsbunny444"]
[Black "DanielNaroditsky"]
[Result "0-1"]
[WhiteElo "2417"]
[BlackElo "2733"]
[TimeControl "180+2"]
[EndTime "14:10:52 PST"]
[Termination "DanielNaroditsky won by checkmate"]

1. Nf3 {[%clk 0:03:01.9]} 1... d5 {[%clk 0:03:00.8]} 2. c4 {[%clk 0:03:03]} 2...
d4 {[%clk 0:03:02]} 3. b4 {[%clk 0:03:03.7]} 3... Bg4 {[%clk 0:03:02.2]} 4. Qb3
{[%clk 0:03:04.1]} 4... Bxf3 {[%clk 0:02:59.1]} 5. Qxf3 {[%clk 0:03:04.3]} 5...
e5 {[%clk 0:03:00.9]} 6. Qxb7 {[%clk 0:02:57.5]} 6... Nd7 {[%clk 0:03:02.2]} 7.
a3 {[%clk 0:02:41.9]} 7... Ngf6 {[%clk 0:03:02.3]} 8. g3 {[%clk 0:02:35.1]} 8...
a5 {[%clk 0:02:57.1]} 9. b5 {[%clk 0:02:33.2]} 9... e4 {[%clk 0:02:55.2]} 10.
Bh3 {[%clk 0:02:23]} 10... Ne5 {[%clk 0:02:41.8]} 11. O-O {[%clk 0:01:50.8]}
11... Bc5 {[%clk 0:02:42.6]} 12. d3 {[%clk 0:01:41.6]} 12... Ra7 {[%clk
0:02:43.2]} 13. Qc8 {[%clk 0:01:38.7]} 13... Qxc8 {[%clk 0:02:34.8]} 14. Bxc8
{[%clk 0:01:40.6]} 14... exd3 {[%clk 0:02:28.4]} 15. exd3 {[%clk 0:01:41.5]}
15... O-O {[%clk 0:02:29.6]} 16. Bf5 {[%clk 0:01:37.9]} 16... g6 {[%clk
0:02:31]} 17. Bf4 {[%clk 0:01:38.9]} 17... Nxc4 {[%clk 0:02:19.7]} 18. dxc4
{[%clk 0:01:36]} 18... gxf5 {[%clk 0:02:21]} 19. Nd2 {[%clk 0:01:33.5]} 19... a4
{[%clk 0:02:22.4]} 20. Nf3 {[%clk 0:01:31]} 20... Ne4 {[%clk 0:02:23.7]} 21.
Rfd1 {[%clk 0:01:27.7]} 21... Rd8 {[%clk 0:02:24.7]} 22. Rd3 {[%clk 0:01:22.7]}
22... Nc3 {[%clk 0:02:25.4]} 23. Be5 {[%clk 0:01:16.5]} 23... Rd7 {[%clk
0:01:41.6]} 24. Kf1 {[%clk 0:01:08.8]} 24... Ra8 {[%clk 0:01:42]} 25. Bxd4
{[%clk 0:00:51.3]} 25... Ne4 {[%clk 0:01:41.4]} 26. Rdd1 {[%clk 0:00:46.7]}
26... Rad8 {[%clk 0:01:40.3]} 27. Bxc5 {[%clk 0:00:29.3]} 27... Rxd1+ {[%clk
0:01:40.9]} 28. Rxd1 {[%clk 0:00:31.2]} 28... Rxd1+ {[%clk 0:01:41.8]} 29. Ke2
{[%clk 0:00:33.1]} 29... Rc1 {[%clk 0:01:27.7]} 30. Bb4 {[%clk 0:00:27.4]} 30...
Rxc4 {[%clk 0:01:18.5]} 31. Kd3 {[%clk 0:00:27.9]} 31... Rc1 {[%clk 0:01:13.6]}
32. Nd4 {[%clk 0:00:27.2]} 32... Nxf2+ {[%clk 0:01:14.9]} 33. Kd2 {[%clk
0:00:24.2]} 33... Rd1+ {[%clk 0:01:16.2]} 34. Kc3 {[%clk 0:00:19]} 34... Ne4+
{[%clk 0:01:14]} 35. Kc4 {[%clk 0:00:19.7]} 35... Kg7 {[%clk 0:00:53.9]} 36.
Nxf5+ {[%clk 0:00:20.7]} 36... Kf6 {[%clk 0:00:55.3]} 37. Ne3 {[%clk 0:00:20]}
37... Rd7 {[%clk 0:00:52.3]} 38. Nd5+ {[%clk 0:00:12.7]} 38... Ke5 {[%clk
0:00:53.5]} 39. Nf4 {[%clk 0:00:13]} 39... Rd4# {[%clk 0:00:52.9]} 0-1

[Event "*** MasterClass Titled Tuesday Blitz"]
[Site "Chess.com"]
[Date "2017.11.07"]
[Round "1"]
[White "MagnusCarlsen"]
[Black "Ar4uha"]
[Result "1-0"]
[WhiteElo "3038"]
[BlackElo "2446"]
[TimeControl "180+2"]
[EndTime "14:10:55 PST"]
[Termination "MagnusCarlsen won by resignation"]

1. e4 {[%clk 0:03:01.9]} 1... d6 {[%clk 0:02:59.6]} 2. d4 {[%clk 0:03:00.4]}
2... Nf6 {[%clk 0:03:00.5]} 3. Nc3 {[%clk 0:03:00.8]} 3... e5 {[%clk 0:02:47.9]}
4. Nf3 {[%clk 0:03:00.4]} 4... Nbd7 {[%clk 0:02:48.3]} 5. Bc4 {[%clk 0:03:00.5]}
5... Be7 {[%clk 0:02:49.4]} 6. O-O {[%clk 0:03:01.7]} 6... O-O {[%clk 0:02:50]}
7. a4 {[%clk 0:03:01.8]} 7... a5 {[%clk 0:02:50.5]} 8. Re1 {[%clk 0:03:00.1]}
8... c6 {[%clk 0:02:50.6]} 9. h3 {[%clk 0:02:50.1]} 9... Nb6 {[%clk 0:02:37.2]}
10. Bb3 {[%clk 0:02:41.8]} 10... Nfd7 {[%clk 0:02:35.2]} 11. Be3 {[%clk
0:02:36.7]} 11... exd4 {[%clk 0:02:34.9]} 12. Nxd4 {[%clk 0:02:38.6]} 12... Nc5
{[%clk 0:02:31.4]} 13. Qf3 {[%clk 0:02:37.6]} 13... Bf6 {[%clk 0:02:25.5]} 14.
Rad1 {[%clk 0:02:37.9]} 14... Qe7 {[%clk 0:02:19.8]} 15. Qg3 {[%clk 0:02:19.3]}
15... Kh8 {[%clk 0:02:04]} 16. Bf4 {[%clk 0:02:07]} 16... Be5 {[%clk 0:01:56.5]}
17. Nf3 {[%clk 0:02:05.7]} 17... Nxb3 {[%clk 0:01:47.6]} 18. Nxe5 {[%clk
0:02:01.2]} 18... dxe5 {[%clk 0:01:17.5]} 19. Bxe5 {[%clk 0:02:03.1]} 19... Rg8
{[%clk 0:01:02.5]} 20. cxb3 {[%clk 0:02:03.6]} 20... Be6 {[%clk 0:01:03.4]} 21.
Ne2 {[%clk 0:02:04.7]} 21... Nd7 {[%clk 0:01:01.7]} 22. Bd6 {[%clk 0:02:02.5]}
22... Qf6 {[%clk 0:01:02.5]} 23. Nd4 {[%clk 0:02:03.6]} 23... h6 {[%clk
0:00:57.2]} 24. f4 {[%clk 0:02:00.1]} 24... Nb6 {[%clk 0:00:55.9]} 25. f5 {[%clk
0:02:00.1]} 25... Bc8 {[%clk 0:00:54.2]} 26. Bc7 {[%clk 0:01:25.6]} 26... Nd7
{[%clk 0:00:46.5]} 27. e5 {[%clk 0:01:26.6]} 27... Qg5 {[%clk 0:00:46.9]} 28.
Qc3 {[%clk 0:01:17.6]} 28... Nf8 {[%clk 0:00:40.1]} 29. e6 {[%clk 0:01:15.9]}
29... fxe6 {[%clk 0:00:42]} 30. fxe6 {[%clk 0:01:17.6]} 30... Ng6 {[%clk
0:00:43.1]} 31. Nf3 {[%clk 0:01:12.5]} 31... Qh5 {[%clk 0:00:39.8]} 32. e7
{[%clk 0:01:12.7]} 32... Bxh3 {[%clk 0:00:32.2]} 33. gxh3 {[%clk 0:01:13.5]}
33... Qxh3 {[%clk 0:00:34.1]} 34. Ne5 {[%clk 0:01:10.1]} 34... Qh5 {[%clk
0:00:30.6]} 35. Nxg6+ {[%clk 0:01:09.2]} 35... Qxg6+ {[%clk 0:00:31.8]} 36. Qg3
{[%clk 0:01:10.8]} 36... Qc2 {[%clk 0:00:29.5]} 37. Rd8 {[%clk 0:01:08.6]} 37...
Qc5+ {[%clk 0:00:26]} 38. Qe3 {[%clk 0:01:06.2]} 1-0

[Event "*** MasterClass Titled Tuesday Blitz"]
[Site "Chess.com"]
[Date "2017.11.07"]
[Round "1"]
[White "Rikikits"]
[Black "rubhani"]
[Result "0-1"]
[WhiteElo "2512"]
[BlackElo "2269"]
[TimeControl "180+2"]
[EndTime "14:10:56 PST"]
[Termination "rubhani won by checkmate"]

1. e4 {[%clk 0:03:01.9]} 1... c5 {[%clk 0:02:59.9]} 2. Nf3 {[%clk 0:02:52.3]}
2... d6 {[%clk 0:03:00.1]} 3. d4 {[%clk 0:02:53]} 3... cxd4 {[%clk 0:03:00.8]}
4. Nxd4 {[%clk 0:02:48.9]} 4... Nf6 {[%clk 0:03:01.4]} 5. Nc3 {[%clk 0:02:45.2]}
5... a6 {[%clk 0:03:02.6]} 6. h3 {[%clk 0:02:40.8]} 6... e6 {[%clk 0:03:02.9]}
7. g4 {[%clk 0:02:36.5]} 7... Nfd7 {[%clk 0:03:01.5]} 8. Be3 {[%clk 0:02:24.9]}
8... b5 {[%clk 0:02:59.1]} 9. Bg2 {[%clk 0:02:24.8]} 9... Bb7 {[%clk 0:02:59.2]}
10. O-O {[%clk 0:02:22.8]} 10... Be7 {[%clk 0:02:59.6]} 11. Qe2 {[%clk
0:00:11.4]} 11... O-O {[%clk 0:02:55.4]} 12. Rad1 {[%clk 0:00:12.2]} 12... Qc7
{[%clk 0:02:56.1]} 13. f4 {[%clk 0:00:12.4]} 13... Nc6 {[%clk 0:02:57.1]} 14.
Nf5 {[%clk 0:00:11.1]} 14... exf5 {[%clk 0:02:45.8]} 15. Nd5 {[%clk 0:00:11.7]}
15... Qd8 {[%clk 0:02:24.5]} 16. exf5 {[%clk 0:00:12.7]} 16... Re8 {[%clk
0:02:10.6]} 17. g5 {[%clk 0:00:11.6]} 17... Bf8 {[%clk 0:01:48.3]} 18. Qg4
{[%clk 0:00:08.9]} 18... Nb4 {[%clk 0:01:24.1]} 19. Nxb4 {[%clk 0:00:08.1]}
19... Bxg2 {[%clk 0:01:23.8]} 20. Kxg2 {[%clk 0:00:07.9]} 20... Rxe3 {[%clk
0:01:24.2]} 21. Nd5 {[%clk 0:00:09.7]} 21... Re8 {[%clk 0:01:24.2]} 22. h4
{[%clk 0:00:10.3]} 22... Qc8 {[%clk 0:01:24.7]} 23. c3 {[%clk 0:00:10]} 23...
Qc6 {[%clk 0:01:25.1]} 24. Kh2 {[%clk 0:00:08.7]} 24... Nb6 {[%clk 0:01:25.9]}
25. Nxb6 {[%clk 0:00:09.1]} 25... Qxb6 {[%clk 0:01:27.1]} 26. Rd2 {[%clk
0:00:10.7]} 26... Qe3 {[%clk 0:01:26.7]} 27. Rg2 {[%clk 0:00:11.4]} 27... d5
{[%clk 0:01:18.3]} 28. h5 {[%clk 0:00:12.1]} 28... Bd6 {[%clk 0:01:01.4]} 29.
Rf3 {[%clk 0:00:11.4]} 29... Qc1 {[%clk 0:00:52.4]} 30. f6 {[%clk 0:00:12.1]}
30... Re4 {[%clk 0:00:47.9]} 31. Rgf2 {[%clk 0:00:10.6]} 31... Re1 {[%clk
0:00:47.1]} 32. g6 {[%clk 0:00:06]} 32... Rh1+ {[%clk 0:00:47.6]} 33. Kg3 {[%clk
0:00:07.2]} 33... Rg1+ {[%clk 0:00:47.9]} 34. Rg2 {[%clk 0:00:08.7]} 34... Qe1+
{[%clk 0:00:47.8]} 35. Kh2 {[%clk 0:00:09]} 35... Rh1# {[%clk 0:00:47.7]} 0-1

[Event "*** MasterClass Titled Tuesday Blitz"]
[Site "Chess.com"]
[Date "2017.11.07"]
[Round "1"]
[White "hansen"]
[Black "MFBerna"]
[Result "1-0"]
[WhiteElo "2579"]
[BlackElo "2316"]
[TimeControl "180+2"]
[EndTime "14:11:00 PST"]
[Termination "hansen won by resignation"]

1. e4 {[%clk 0:03:01]} 1... e5 {[%clk 0:03:00.4]} 2. Nf3 {[%clk 0:02:51.6]} 2...
Nc6 {[%clk 0:03:01.8]} 3. Bb5 {[%clk 0:02:46.1]} 3... Nf6 {[%clk 0:03:02.1]} 4.
d3 {[%clk 0:02:45.9]} 4... d6 {[%clk 0:03:01.8]} 5. c3 {[%clk 0:02:46]} 5... Be7
{[%clk 0:03:01.9]} 6. O-O {[%clk 0:02:46.7]} 6... O-O {[%clk 0:03:03.2]} 7. h3
{[%clk 0:02:43.8]} 7... Bd7 {[%clk 0:03:04]} 8. a4 {[%clk 0:02:43.2]} 8... Re8
{[%clk 0:03:01.3]} 9. Re1 {[%clk 0:02:44]} 9... h6 {[%clk 0:03:00]} 10. Nbd2
{[%clk 0:02:44.6]} 10... Bf8 {[%clk 0:03:00.8]} 11. Nf1 {[%clk 0:02:44.2]} 11...
g6 {[%clk 0:03:01.8]} 12. Ng3 {[%clk 0:02:31]} 12... Bg7 {[%clk 0:03:02.6]} 13.
Be3 {[%clk 0:02:05.4]} 13... a6 {[%clk 0:03:01.6]} 14. Bc4 {[%clk 0:02:05.8]}
14... Be6 {[%clk 0:02:58]} 15. Bxe6 {[%clk 0:02:02.9]} 15... Rxe6 {[%clk
0:02:59.9]} 16. b4 {[%clk 0:02:03.4]} 16... d5 {[%clk 0:02:53.3]} 17. b5 {[%clk
0:02:04]} 17... Ne7 {[%clk 0:02:36.1]} 18. Qb3 {[%clk 0:02:01.2]} 18... Qd7
{[%clk 0:02:16.3]} 19. Bc5 {[%clk 0:02:02]} 19... Re8 {[%clk 0:01:59.6]} 20. c4
{[%clk 0:01:54.8]} 20... d4 {[%clk 0:01:42.8]} 21. a5 {[%clk 0:01:47.9]} 21...
Rd8 {[%clk 0:01:12.4]} 22. Reb1 {[%clk 0:01:44.4]} 22... Bf8 {[%clk 0:01:03.1]}
23. Qa3 {[%clk 0:01:35.9]} 23... Ne8 {[%clk 0:00:47]} 24. Qa4 {[%clk 0:01:25.1]}
24... Ra8 {[%clk 0:00:33.9]} 25. Nd2 {[%clk 0:01:17.1]} 25... Nf6 {[%clk
0:00:22.4]} 26. Nb3 {[%clk 0:01:11.3]} 26... h5 {[%clk 0:00:23]} 27. Bb4 {[%clk
0:01:07.8]} 27... h4 {[%clk 0:00:22.1]} 28. Nc5 {[%clk 0:01:07.7]} 28... Qc8
{[%clk 0:00:21.5]} 29. Nxe6 {[%clk 0:01:08.6]} 29... Qxe6 {[%clk 0:00:23.4]} 30.
Nf1 {[%clk 0:01:06.8]} 30... g5 {[%clk 0:00:21.6]} 31. Nh2 {[%clk 0:01:06.9]}
31... Ng6 {[%clk 0:00:22.2]} 32. Bxf8 {[%clk 0:01:07]} 32... Kxf8 {[%clk
0:00:22.3]} 33. Qd1 {[%clk 0:01:06.4]} 33... Nf4 {[%clk 0:00:22.4]} 34. Qf3
{[%clk 0:01:08]} 34... Kg7 {[%clk 0:00:19]} 35. Ng4 {[%clk 0:01:08.7]} 35... Nd7
{[%clk 0:00:16.5]} 36. g3 {[%clk 0:01:08.4]} 36... hxg3 {[%clk 0:00:11]} 37.
fxg3 {[%clk 0:01:09.1]} 37... Nxh3+ {[%clk 0:00:12.3]} 38. Kg2 {[%clk
0:01:09.8]} 38... Rh8 {[%clk 0:00:13.4]} 39. Rh1 {[%clk 0:01:09.9]} 39... Nc5
{[%clk 0:00:07.5]} 40. Rxh3 {[%clk 0:01:07]} 40... Rxh3 {[%clk 0:00:09.4]} 41.
Kxh3 {[%clk 0:01:08.9]} 41... Nxd3 {[%clk 0:00:10.6]} 1-0

[Event "*** MasterClass Titled Tuesday Blitz"]
[Site "Chess.com"]
[Date "2017.11.07"]
[Round "1"]
[White "tigra"]
[Black "cheese111"]
[Result "1-0"]
[WhiteElo "2644"]
[BlackElo "2363"]
[TimeControl "180+2"]
[EndTime "14:11:02 PST"]
[Termination "tigra won by resignation"]

1. e4 {[%clk 0:03:01.9]} 1... e5 {[%clk 0:02:59.7]} 2. Nf3 {[%clk 0:03:02.4]}
2... Nc6 {[%clk 0:03:00.8]} 3. Bc4 {[%clk 0:03:04]} 3... Nf6 {[%clk 0:03:00.8]}
4. d3 {[%clk 0:03:05.4]} 4... Bc5 {[%clk 0:03:01.1]} 5. c3 {[%clk 0:03:06.7]}
5... O-O {[%clk 0:03:01.1]} 6. Bb3 {[%clk 0:03:06.5]} 6... a6 {[%clk 0:02:57.4]}
7. Nbd2 {[%clk 0:03:06.8]} 7... d6 {[%clk 0:02:58.4]} 8. h3 {[%clk 0:03:06.1]}
8... h6 {[%clk 0:02:59]} 9. Qe2 {[%clk 0:03:06.7]} 9... Re8 {[%clk 0:02:59.8]}
10. Nf1 {[%clk 0:03:07.3]} 10... d5 {[%clk 0:03:00.6]} 11. Ng3 {[%clk
0:03:07.7]} 11... Be6 {[%clk 0:03:01.4]} 12. O-O {[%clk 0:03:07.8]} 12... Qd7
{[%clk 0:02:55.4]} 13. Nh4 {[%clk 0:02:58.3]} 13... Rad8 {[%clk 0:02:46.8]} 14.
Rd1 {[%clk 0:02:38.5]} 14... Bf8 {[%clk 0:02:32.2]} 15. Qf3 {[%clk 0:02:32.8]}
15... Nh7 {[%clk 0:02:09.5]} 16. Nhf5 {[%clk 0:02:29.3]} 16... Na5 {[%clk
0:01:55]} 17. Bc2 {[%clk 0:02:04.4]} 17... c5 {[%clk 0:01:39.5]} 18. exd5 {[%clk
0:01:52.6]} 18... Bxd5 {[%clk 0:01:29.9]} 19. Ne4 {[%clk 0:01:51.8]} 19... Qc6
{[%clk 0:01:22.9]} 20. b3 {[%clk 0:01:34.8]} 20... b5 {[%clk 0:00:56.3]} 21. Bb2
{[%clk 0:01:34.6]} 21... c4 {[%clk 0:00:48.5]} 22. dxc4 {[%clk 0:01:33.8]} 22...
bxc4 {[%clk 0:00:48.7]} 23. b4 {[%clk 0:01:31]} 23... Nb7 {[%clk 0:00:47]} 24.
Ne3 {[%clk 0:01:31.3]} 24... Rd7 {[%clk 0:00:13.8]} 25. Nxd5 {[%clk 0:01:31.7]}
25... Rxd5 {[%clk 0:00:14.8]} 26. Rxd5 {[%clk 0:01:29.7]} 26... Qxd5 {[%clk
0:00:16.7]} 27. Rd1 {[%clk 0:01:30.8]} 27... Qe6 {[%clk 0:00:16.8]} 28. Ba4
{[%clk 0:01:16.3]} 28... Rd8 {[%clk 0:00:17.2]} 29. Rxd8 {[%clk 0:01:16.2]}
29... Nxd8 {[%clk 0:00:19.1]} 30. Qd1 {[%clk 0:01:17.2]} 30... Nb7 {[%clk
0:00:18.2]} 31. Qd7 {[%clk 0:01:16.3]} 31... Qxd7 {[%clk 0:00:05.2]} 32. Bxd7
{[%clk 0:01:18.2]} 32... a5 {[%clk 0:00:04.8]} 33. Bc8 {[%clk 0:01:11.7]} 33...
Nd6 {[%clk 0:00:04.4]} 34. Nxd6 {[%clk 0:01:12.7]} 34... Bxd6 {[%clk 0:00:06.3]}
35. bxa5 {[%clk 0:01:13.4]} 35... Bc5 {[%clk 0:00:07.7]} 36. a6 {[%clk
0:01:13.8]} 36... Nf6 {[%clk 0:00:07.1]} 37. Ba3 {[%clk 0:01:14.5]} 37... Ba7
{[%clk 0:00:06.1]} 38. Bb7 {[%clk 0:01:12.5]} 38... e4 {[%clk 0:00:04.4]} 39.
Kf1 {[%clk 0:01:12]} 39... e3 {[%clk 0:00:05.6]} 40. fxe3 {[%clk 0:01:09.5]}
40... Bxe3 {[%clk 0:00:07.5]} 41. Ke2 {[%clk 0:01:10.8]} 41... Ba7 {[%clk
0:00:08.9]} 42. Bc1 {[%clk 0:01:12]} 42... Kf8 {[%clk 0:00:09.1]} 43. Be3 {[%clk
0:01:12.9]} 1-0